Cogmind - Beta 12 @@@ ROGUE MODE // 2023.08.28 @ 01:43:33 // Winter2019/RPGLIKE Player: Hermelin Result: Destroyed by D-63 Destroyer with Heavy Rocket Launcher Performance ------------- Evolutions (4) 2000 Regions Visited (14) 2800 Robots Destroyed (214) 1070 Value Destroyed (7036) 7036 Prototype IDs (250) 5000 Alien Tech Used (0) 0 Bonus (3831) 3831 TOTAL SCORE: 21737 Bonus ------- High Alert Combat Kills 646 Follower Combat Kills 794 Aligned with FarCom 300 Met Data Miner 300 Used Data Conduit 3000 Friendly Fire -1209 Cogmind --------- Core Integrity 0/800 Matter 250/300 Energy 380/380 System Corruption 5% Temperature Cool (0) Movement Treading (161) Location -5/Proximity Caves Parts ------- > --- POWER (2) -------- Cooled Ion Engine Cold Fusion Reactor > --- PROPULSION (3) --- Improved Medium Treads Treaded CIT-VTOL Exoskeleton > --- UTILITY (10) ----- Armored Scrap Engine Experimental Heat Sink Advanced Terrain Scanner Salvage Targeting Computer Weapon Cycler Graphene Brace Hardlight Generator Sensor Drone Bay (20/20) > --- WEAPON (3) ------- Thermal Construct/G Rapid Laser Riot Construct/G > --- INVENTORY (7) ---- Advanced Energy Well (500) Matter Compressor (250) Advanced Signal Interpreter Shield Generator Field Lobotomy Kit (1) Plasma Cutter Peak State ------------ > --- POWER ------------ Cooled Ion Engine Cold Fusion Reactor > --- PROPULSION ------- Armored Treads Armored Treads Improved Medium Treads > --- UTILITY ---------- Armored Scrap Engine Experimental Heat Sink Advanced Terrain Scanner Salvage Targeting Computer Weapon Cycler Improved Heavy Armor Plating Hardlight Generator Sensor Drone Bay > --- WEAPON ----------- Field Lobotomy Kit Thermal Construct/G Rapid Laser Riot Construct/G > --- INVENTORY -------- Advanced Energy Well Matter Compressor Advanced Signal Interpreter Graphene Brace Shield Generator Improved Field Recycling Unit [Rating: 99] Favorites ----------- Power Cooled Ion Engine Engine Cooled Ion Engine Power Core Constructs Reactor Cold Fusion Reactor Propulsion Light Treads Treads Light Treads Wheel Wheel Hover Unit Aerolev Unit Utility Improved Terrain Scanner Device Improved Terrain Scanner Storage High-capacity Battery Processor Salvage Targeting Computer Protection Medium Armor Plating Weapon Enhanced Autogun Energy Gun Heavy EM Shotgun Energy Cannon Constructs Ballistic Gun Enhanced Autogun Special Weapon Field Lobotomy Kit Impact Weapon Hammer Slashing Weapon Blade Saw Special Melee Weapon Datajack Build | -11 -10 -10 -9 -9 -9 -8 -8 -8 -8 -6 -6 -6 -6 -5 ------- Run | Jun Mat Min Mat Min Exi Min Mat Sto Rec Fac Low Low Dat Pro Slots Evolved 14 | 3 2 2 1 . . . 3 . 1 1 . 1 . . Power 1 | . . . . . . . 1 . . . . . . . Propulsion 2 | 1 1 . . . . . . . . . . . . . Utility 9 | 1 1 1 1 . . . 2 . 1 1 . 1 . . Weapon 2 | 1 . 1 . . . . . . . . . . . . Parts Attached 101 | 7 16 2 17 . 3 1 25 10 5 8 3 1 1 2 Power 9 | 1 1 . 1 . . . 2 1 1 . 2 . . . Engine 6 | 1 1 . 1 . . . 2 . . . 1 . . . Core . | . . . . . . . . . . . . . . . Reactor 3 | . . . . . . . . 1 1 . 1 . . . Propulsion 20 | 2 5 . 3 . . . 6 2 . 1 . . . 1 Treads 16 | 1 3 . 3 . . . 6 1 . 1 . . . 1 Leg . | . . . . . . . . . . . . . . . Wheel 3 | 1 2 . . . . . . . . . . . . . Hover 1 | . . . . . . . . 1 . . . . . . Flight . | . . . . . . . . . . . . . . . Utility 31 | 2 4 1 5 . . . 7 1 2 7 . 1 . 1 Device 15 | 2 1 1 1 . . . 2 1 2 3 . 1 . 1 Storage 1 | . 1 . . . . . . . . . . . . . Processor 3 | . 2 . . . . . 1 . . . . . . . Hackware . | . . . . . . . . . . . . . . . Protection 12 | . . . 4 . . . 4 . . 4 . . . . Artifact . | . . . . . . . . . . . . . . . Weapon 41 | 2 6 1 8 . 3 1 10 6 2 . 1 . 1 . Energy Gun 14 | 1 2 . 2 . 1 . 3 4 . . 1 . . . Energy Cannon 1 | . . . . . . . . 1 . . . . . . Ballistic Gun 17 | 1 3 1 3 . 1 1 6 . 1 . . . . . Ballistic Cannon . | . . . . . . . . . . . . . . . Launcher . | . . . . . . . . . . . . . . . Special Weapon 2 | . . . . . . . . 1 . . . . 1 . Impact Weapon 2 | . 1 . 1 . . . . . . . . . . . Slashing Weapon 1 | . . . . . . . 1 . . . . . . . Piercing Weapon . | . . . . . . . . . . . . . . . Special Melee Weapon 4 | . . . 2 . 1 . . . 1 . . . . . Unidentified Prototypes 8 | . . 1 1 . . . 2 3 . 1 . . . . Parts Lost 1 | . . . . . . . . . . . . . . 1 Power . | . . . . . . . . . . . . . . . Propulsion . | . . . . . . . . . . . . . . . Utility 1 | . . . . . . . . . . . . . . 1 Weapon . | . . . . . . . . . . . . . . . Highest Loss Streak 1 | . . . . . . . . . . . . . . 1 To Critical Strikes . | . . . . . . . . . . . . . . . Average Slot Usage (%) 95 | . 99 95 99 100 99 100 97 100 93 92 87 86 87 76 Engine 7 | . 12 9 8 8 8 8 8 6 6 5 4 5 5 5 Reactor 2 | . . . . . . . . 5 6 5 4 5 5 5 Treads 19 | . 13 19 23 25 25 25 21 20 18 17 17 16 16 9 Wheel 1 | . 13 9 2 . . . . . . . . . . . Device 25 | . 21 12 21 25 25 25 24 26 25 27 29 31 33 33 Processor 5 | . 11 19 8 . . . 5 6 6 5 5 5 5 5 Protection 9 | . . . 8 16 16 16 13 13 12 9 5 5 5 4 Energy Gun 5 | . 6 . 6 8 8 8 5 5 6 5 4 2 5 5 Ballistic Gun 11 | . 12 15 9 8 10 16 14 13 11 11 10 7 5 5 Impact Weapon 1 | . 5 9 8 8 . . . . . . . . . . Naked Turns . | . . . . . . . . . . . . . . . Heaviest Build 71 | 8 8 24 47 47 47 47 63 64 65 53 57 69 71 63 Greatest Support 75 | 20 20 10 60 60 60 60 63 68 68 75 75 75 75 75 Greatest Overweight (x) 2 | . . 2 2 . . . . 1 . . . . . 1 Average Overweight (x) . | . . . . . . . . . . . . . . . Largest Inventory Capacity 7 | 2 3 3 4 5 5 5 6 6 6 7 7 7 7 7 Average Capacity 5 | 2 2 3 3 4 5 5 5 6 6 6 7 7 7 7 Most Carried 7 | 2 3 3 4 4 4 5 6 6 6 7 7 7 7 7 Average Carried 4 | 1 2 2 3 4 3 4 5 5 5 6 7 6 6 6 Final Capacity 7 | 2 3 3 4 5 5 5 6 6 6 7 7 7 7 7 Final Carried 7 | 2 3 3 4 4 4 5 6 6 6 7 7 7 7 6 Scrap Engine Consumption 145 | . . . . . . . . . 13 99 8 18 3 4 Constructs Created 5 | . . . . . . . . . . . 4 . . 1 Constructs Modified 10 | . . . . . . . . . . . 1 4 . 5 Class Distribution -------------------- 47% | Hacker-Skirmisher 20% | Hacker-Mutant 13% | Mutant 8% | Hacker-Gunner 5% | Scavenger-Assassin Dominant Class ---------------- Scavenger-Assassin | -10/Materials Scavenger-Assassin | -10/Mines Hacker-Mutant | -9/Materials Hacker-Mutant | -9/Mines Hacker-Mutant | -9/Exiles Hacker-Skirmisher | -8/Mines Hacker-Skirmisher | -8/Materials Hacker-Skirmisher | -8/Storage Hacker-Skirmisher | -8/Recycling Hacker-Skirmisher | -6/Factory Hacker-Gunner | -6/Lower Caves Hacker-Gunner | -6/Lower Caves Hacker-Mutant | -6/Data Miner Hacker-Mutant | -5/Proximity Caves Resources | -11 -10 -10 -9 -9 -9 -8 -8 -8 -8 -6 -6 -6 -6 -5 ----------- Run | Jun Mat Min Mat Min Exi Min Mat Sto Rec Fac Low Low Dat Pro Matter Collected 4220 | 275 226 30 347 42 . 148 963 609 147 788 468 88 43 46 Remotely 1232 | . . . . . . . 956 276 . . . . . . Salvage Created 8517 | 9 1146 144 922 48 . 151 1610 2048 420 1285 380 172 . 182 Parts 510 | 3 68 6 47 11 . 14 107 118 9 98 20 6 . 3 Haulers Intercepted 18 | . 2 . 6 . . . 5 4 . 1 . . . . Recyclers Shooed 5 | . 1 . . . . . 1 2 . 1 . . . . Parts Field Recycled . | . . . . . . . . . . . . . . . Retrieved Matter . | . . . . . . . . . . . . . . . Parts Self-Destructed 39 | . . . . . . . . . . . 20 6 . 13 Prevented . | . . . . . . . . . . . . . . . Kills | -11 -10 -10 -9 -9 -9 -8 -8 -8 -8 -6 -6 -6 -6 -5 ------- Run | Jun Mat Min Mat Min Exi Min Mat Sto Rec Fac Low Low Dat Pro Combat Hostiles Destroyed 157 | 1 24 5 17 7 . 6 32 27 1 23 9 3 . 2 Melee 11 | . 4 3 4 . . . . . . . . . . . Guns 125 | 1 13 . 10 7 . 6 27 26 1 21 9 2 . 2 Cannons 1 | . . . . . . . . . . . . 1 . . AOE 11 | . 3 . . . . . 5 1 . 2 . . . . Classes Destroyed 18 | 2 6 1 2 . . . 4 1 . 2 . . . . Worker 9 | . 3 . 1 . . . 2 . . 3 . . . . Builder 8 | . 1 . . . . . . 5 . 2 . . . . Tunneler 2 | 1 . 1 . . . . . . . . . . . . Hauler 18 | . 2 . 6 . . . 5 4 . 1 . . . . Recycler 8 | . 1 . . . . . . 2 5 . . . . . Mechanic 2 | . . . . . . . . 1 . 1 . . . . Operator 3 | . . . . . . . 2 1 . . . . . . Watcher 7 | . 2 . 2 . . . 2 . . 1 . . . . Swarmer 25 | . . 3 3 5 . . 4 3 . 3 4 . . . Grunt 81 | . 24 2 10 2 . 6 11 10 . 9 4 3 . . Brawler 2 | . . . 1 . . . 1 . . . . . . . Duelist 2 | . . . . . . . . . . 1 . . . 1 Sentry 29 | . . . 3 . . . 9 14 1 2 . . . . Demolisher 2 | 1 . . . . . . . . . . . . . 1 Specialist 2 | . . . . . . . 2 . . . . . . . Hunter 8 | . . . . . . . 4 . . 3 1 . . . Programmer 5 | . . . . . . . . . . 5 . . . . Heavy 1 | . . . . . . . 1 . . . . . . . Best Kill Streak 14 | 1 4 3 3 3 . 3 6 14 4 7 4 3 . 1 Combat Bots Only 10 | 1 3 3 3 3 . 3 5 10 1 6 4 3 . 1 Max Kills in Single Turn 4 | 1 2 1 1 1 . 1 4 4 1 2 2 1 . 1 Gunslinging 1 | . . . . . . . 1 1 . . 1 . . . Exploded 3 | . 2 . . . . . 3 1 . 1 . . . . Melee 1 | . 1 1 1 . . . . . . . . . . . Uniques/NPCs Destroyed 1 | . . . . . . . . . . 1 . . . . *My MTF (-6/Factory) Combat | -11 -10 -10 -9 -9 -9 -8 -8 -8 -8 -6 -6 -6 -6 -5 -------- Run | Jun Mat Min Mat Min Exi Min Mat Sto Rec Fac Low Low Dat Pro Damage Taken 9500 | 181 1121 215 563 194 . 251 1308 865 29 1649 354 349 909 1512 Core 6686 | 171 919 165 440 132 . 196 849 602 20 1086 233 251 592 1030 Absorbed by Shields 884 | . . . . . . . . 152 12 368 112 92 88 60 Redirected to Core 5742 | 36 645 165 387 126 . 131 765 549 9 988 225 213 548 955 Regen/Repaired (Parts) 99 | . 21 . 16 . . . 34 . . 8 5 . 15 . Core Remaining (%) 88 | 71 . 84 . . . 100 . . 100 . . . . . Volleys Fired 487 | 5 87 . 43 14 . 18 86 62 11 83 22 13 7 36 Largest 3 | 2 2 . 2 2 . 3 3 3 3 3 3 3 2 2 Hottest 151 | 60 60 . 88 88 . 91 133 100 100 100 100 151 93 93 Shots Fired 1180 | 9 148 . 82 28 . 54 253 174 33 233 53 31 11 71 Gun 1171 | 9 148 . 82 28 . 54 253 173 33 233 53 26 8 71 Cannon 5 | . . . . . . . . . . . . 5 . . Launcher . | . . . . . . . . . . . . . . . Special 4 | . . . . . . . . 1 . . . . 3 . Kinetic 747 | 5 76 . 59 14 . 36 185 122 22 166 44 18 . . Thermal 132 | . . . 23 14 . . 3 . . . . 13 8 71 Explosive . | . . . . . . . . . . . . . . . Electromagnetic 297 | 4 72 . . . . 18 65 51 11 67 9 . . . Robot Hit Streak 20 | 3 12 . 15 5 . 12 20 17 8 16 18 6 4 14 Robot Miss Streak 6 | 2 4 . 5 6 . 6 6 3 2 5 2 2 1 2 Penetration Max . | . . . . . . . . . . . . . . . Secondary Targets 23 | . 1 . . 1 . . 5 8 . 4 2 2 . . Max Gunslinging Chain 2 | . 1 . . 1 . . 1 1 . 1 2 1 . . Shots Hit Robots 919 | 5 123 13 93 20 4 38 167 134 27 170 41 21 9 54 Core Hits 418 | 3 50 3 44 18 . 14 77 71 9 79 21 7 5 17 Critical Kills 6 | . 2 . 1 . . 1 1 . . . 1 . . . Critical Parts Destroyed 13 | . 4 1 7 . . . 1 . . . . . . . Critical Strikes 25 | . 7 1 8 . . 1 3 . . . 1 1 . 3 Burn 4 | . . . . . . . . . . . . 1 . 3 Destroy 4 | . . . . . . 1 2 . . . 1 . . . Corrupt 2 | . 1 . . . . . 1 . . . . . . . Smash 15 | . 6 1 8 . . . . . . . . . . . Melee Attacks 96 | . 39 19 33 . 4 . . . 1 . . . . . Impact 89 | . 39 19 31 . . . . . . . . . . . Slashing . | . . . . . . . . . . . . . . . Piercing . | . . . . . . . . . . . . . . . Sneak Attacks 17 | . 5 1 6 . 4 . . . 1 . . . . . Combat Hostiles . | . . . . . . . . . . . . . . . Follow-up Attacks . | . . . . . . . . . . . . . . . Damage Inflicted 18356 | 78 2215 375 1737 211 . 629 3449 3034 506 3468 766 464 107 1317 Guns 14440 | 54 1054 . 830 211 . 588 2920 2639 472 3097 766 385 107 1317 Cannons 79 | . . . . . . . . . . . . 79 . . Explosions 1684 | 24 297 . . . . 41 522 395 34 371 . . . . Melee 2146 | . 864 375 907 . . . . . . . . . . . Ramming 7 | . . . . . . . 7 . . . . . . . Kinetic 8287 | 17 393 . 577 77 . 349 1926 1638 284 2163 612 251 . . Thermal 3650 | 24 297 . 253 134 . 41 546 338 34 346 . 213 107 1317 Explosive 57 | . . . . . . . . 57 . . . . . . Electromagnetic 4209 | 37 661 . . . . 239 970 1001 188 959 154 . . . Impact 2146 | . 864 375 907 . . . . . . . . . . . Slashing . | . . . . . . . . . . . . . . . Piercing . | . . . . . . . . . . . . . . . Highest Corruption 5 | . . . . . . . . 3 3 5 5 5 5 5 Average Corruption 3 | . . . . . . . . 2 3 1 5 5 5 5 Corruption Purged . | . . . . . . . . . . . . . . . Corruption Blocked . | . . . . . . . . . . . . . . . Effects 105 | . . . . . . . . 18 9 14 22 15 8 19 Message Errors 25 | . . . . . . . . 7 1 2 4 6 2 3 Matter Fused 18 | . . . . . . . . 3 3 2 3 2 3 2 Heat Flow Errors 15 | . . . . . . . . 1 2 2 6 . 1 3 Energy Discharges 19 | . . . . . . . . 2 2 3 5 . 2 5 Data Loss (minor) 13 | . . . . . . . . 1 1 1 1 5 . 4 Data Loss (major) 5 | . . . . . . . . . . 2 1 1 . 1 Misfires 1 | . . . . . . . . 1 . . . . . . Alerts 3 | . . . . . . . . . . 1 1 1 . . Weapon Failures 6 | . . . . . . . . 3 . 1 1 . . 1 Overload Shots . | . . . . . . . . . . . . . . . Overflow Damage 670 | 4 242 98 308 . . . . . . 18 . . . . Projectiles 1 | . 1 . . . . . . . . . . . . . Explosions 32 | 4 10 . . . . . . . . 18 . . . . Melee 637 | . 231 98 308 . . . . . . . . . . . Knockbacks 13 | . 8 . 4 . . . . . . . . 1 . . Impact 11 | . 7 . 4 . . . . . . . . . . . Kinetic 1 | . . . . . . . . . . . . 1 . . Secondary 1 | . 1 . . . . . . . . . . . . . Self-Inflicted Damage 718 | . 65 . . . . . 162 212 . 279 . . . . Shots 17 | . 2 . . . . . 4 5 . 6 . . . . Rammed 2 | . . . . . . . 2 . . . . . . . Targets Rammed 2 | . . . . . . . 2 . . . . . . . Kicked . | . . . . . . . . . . . . . . . Crushed . | . . . . . . . . . . . . . . . Highest Temperature 313 | 40 162 . 108 60 . 92 199 202 313 223 140 50 166 191 Average Temperature 60 | 20 60 . 35 16 . 33 61 82 121 24 45 29 87 55 Received Heat Transfer 2239 | . 627 75 258 48 . 135 252 334 12 286 48 104 . 60 Effects 2 | . . . . . . . . . . 2 . . . . Interference 2 | . . . . . . . . . . 2 . . . . Siege Activations . | . . . . . . . . . . . . . . . Robots Corrupted 2 | . 2 . . . . . . . . . . . . . Combat Hostiles 1 | . 1 . . . . . . . . . . . . . Parts Fried 27 | . 11 2 5 . . . 5 1 . 3 . . . . Impact Corruptions 28 | . 12 4 12 . . . . . . . . . . . Robots Melted . | . . . . . . . . . . . . . . . Combat Hostiles . | . . . . . . . . . . . . . . . Parts Melted 4 | . 1 . . . . . 1 . . 1 . . . 1 Heat Transferred 3847 | 50 300 . 315 170 . 50 580 450 . 350 . 300 175 1107 Parts Sabotaged . | . . . . . . . . . . . . . . . Parts Stolen . | . . . . . . . . . . . . . . . Parts Stripped . | . . . . . . . . . . . . . . . Power Chain Reactions 22 | 1 3 . . . . 1 6 6 1 4 . . . . Missiles Intercepted . | . . . . . . . . . . . . . . . Alert | -11 -10 -10 -9 -9 -9 -8 -8 -8 -8 -6 -6 -6 -6 -5 ------- Run | Jun Mat Min Mat Min Exi Min Mat Sto Rec Fac Low Low Dat Pro Peak Influence 967 | 45 527 309 311 135 . 77 636 967 485 711 . . . . Initial 370 | . . 169 42 . . . . 234 370 273 . . . . Average 257 | 4 272 258 164 73 . 30 350 643 257 332 . . . . Maximum Alert Level 3 | . 2 1 1 . . . 2 3 2 3 . . . . Low Security (%) 45 | 100 36 26 66 100 . 100 13 . 41 19 . . . . Level 1 32 | . 32 73 33 . . . 54 24 39 51 . . . . Level 2 17 | . 31 . . . . . 31 24 18 28 . . . . Level 3 5 | . . . . . . . . 50 . . . . . . Level 4 . | . . . . . . . . . . . . . . . Level 5 . | . . . . . . . . . . . . . . . High Security . | . . . . . . . . . . . . . . . Max Security . | . . . . . . . . . . . . . . . Squads Dispatched 28 | . 6 . 2 . . . 6 4 . 10 . . . . Investigation 14 | . 6 . 2 . . . 3 1 . 2 . . . . Extermination 3 | . . . . . . . . . . 3 . . . . Reinforcement 7 | . . . . . . . 3 1 . 3 . . . . Assault . | . . . . . . . . . . . . . . . Garrison 4 | . . . . . . . . 2 . 2 . . . . Intercept . | . . . . . . . . . . . . . . . Searches Triggered 1 | . . . . . . . . . . 1 . . . . Construction Impeded . | . . . . . . . . . . . . . . . Haulers Reinforced 1 | . . . . . . . . . . 1 . . . . Active Scanning Responses . | . . . . . . . . . . . . . . . Cargo Convoy Interrupts . | . . . . . . . . . . . . . . . Stealth | -11 -10 -10 -9 -9 -9 -8 -8 -8 -8 -6 -6 -6 -6 -5 --------- Run | Jun Mat Min Mat Min Exi Min Mat Sto Rec Fac Low Low Dat Pro Distress Signals 12 | . 2 . 2 . . . 2 2 . . . . . 4 Communications Jammed . | . . . . . . . . . . . . . . . Distress Signals . | . . . . . . . . . . . . . . . Times Spotted 235 | 1 43 5 19 8 . 6 50 34 2 42 8 3 5 9 Peak Tracking Total 8 | 1 4 3 3 3 . 3 5 8 1 4 4 3 4 4 Tactical Retreats 5 | . 3 . . . . . 1 . . 1 . . . . Traps | -11 -10 -10 -9 -9 -9 -8 -8 -8 -8 -6 -6 -6 -6 -5 ------- Run | Jun Mat Min Mat Min Exi Min Mat Sto Rec Fac Low Low Dat Pro Traps Triggered 7 | . 2 . . . . . 2 2 . 1 . . . . Indirectly . | . . . . . . . . . . . . . . . Trap Hack Attempts . | . . . . . . . . . . . . . . . Triggered . | . . . . . . . . . . . . . . . Disarmed 4 | . . . . . . . 4 . . . . . . . Reprogrammed . | . . . . . . . . . . . . . . . Reused . | . . . . . . . . . . . . . . . Traps Extracted . | . . . . . . . . . . . . . . . Installed 1 | . . 1 . . . . . . . . . . . . Triggered . | . . . . . . . . . . . . . . . Most Traps Carried 1 | . . 1 1 . . . . . . . . . . . Machines | -11 -10 -10 -9 -9 -9 -8 -8 -8 -8 -6 -6 -6 -6 -5 ---------- Run | Jun Mat Min Mat Min Exi Min Mat Sto Rec Fac Low Low Dat Pro Machines Disabled 25 | . . 1 . . . . 5 5 . 14 . . . . Max in Single Turn 3 | . . 1 . . . . 1 2 . 3 . . . . Garrison Access 4 | . . . . . . . 1 1 . 2 . . . . Machines Repaired . | . . . . . . . . . . . . . . . Machines Sabotaged . | . . . . . . . . . . . . . . . Overloaded Fab Kills . | . . . . . . . . . . . . . . . Hacking | -11 -10 -10 -9 -9 -9 -8 -8 -8 -8 -6 -6 -6 -6 -5 --------- Run | Jun Mat Min Mat Min Exi Min Mat Sto Rec Fac Low Low Dat Pro Machines Accessed 76 | . 8 1 12 . 2 . 15 11 9 12 1 1 4 . Terminals 47 | . 5 . 9 . . . 9 9 6 9 . . . . Fabricators 1 | . . . . . . . . . . 1 . . . . Repair Stations 3 | . 1 . 1 . . . 1 . . . . . . . Recycling Units 8 | . 2 . . . . . 2 1 3 . . . . . Scanalyzers 4 | . . . 2 . . . 2 . . . . . . . Garrison Access 4 | . . . . . . . 1 1 . 2 . . . . Total Hacks 365 | . 36 1 77 . 5 . 93 32 50 39 1 1 30 . Successful 236 | . 20 1 49 . 5 . 62 13 28 26 1 1 30 . Failed 128 | . 16 . 27 . . . 31 19 22 13 . . . . Catastrophic 18 | . 1 . 4 . . . 5 3 2 3 . . . . Database Lockouts 1 | . . . 1 . . . . . . . . . . . Manual 167 | . 27 . 41 . 1 . 44 10 31 13 . . . . Terminals 232 | . 28 . 55 . . . 57 28 30 34 . . . . Fabricators 2 | . . . . . . . . . . 2 . . . . Repair Stations 9 | . 2 . 3 . . . 4 . . . . . . . Recycling Units 33 | . 6 . . . . . 5 2 20 . . . . . Scanalyzers 43 | . . . 19 . . . 24 . . . . . . . Garrison Access 8 | . . . . . . . 3 2 . 3 . . . . Terminal Hacks 109 | . 7 1 14 . 5 . 14 9 10 17 1 1 30 . Record 17 | . . . . . 4 . 1 . . 1 . . 11 . Part Schematic 18 | . . . . . . . 1 2 2 2 . . 11 . Robot Schematic 7 | . 1 . . . . . . . . 1 . . 5 . Robot Analysis 10 | . 3 . 2 . . . . . 3 2 . . . . Prototype ID Bank 12 | . 2 . 1 . . . 1 2 1 2 . . 3 . Open Door 6 | . . 1 . . . . . 3 . . 1 1 . . Open DSF 2 | . . . . . . . . . . 2 . . . . Level Access Points 1 | . . . . . . . 1 . . . . . . . Branch Access Points 3 | . . . 1 . . . 1 . . 1 . . . . Emergency Access Points 1 | . . . 1 . . . . . . . . . . . Terminal Index 7 | . . . 1 . . . 2 1 1 2 . . . . Scanalyzer Index 1 | . . . 1 . . . . . . . . . . . Alert Level 4 | . . . 1 . . . 1 . 1 1 . . . . Unreport Threat 5 | . . . 1 . . . 1 . 2 1 . . . . Locate Traps 3 | . . . 1 . . . 2 . . . . . . . Disarm Traps 1 | . . . . . . . 1 . . . . . . . Hauler Manifests 3 | . . . 1 . . . 1 1 . . . . . . Zone Layout 7 | . 1 . 3 . . . 1 . . 2 . . . . EX-Prototype ID Bank 1 | . . . . . 1 . . . . . . . . . Fabricator Hacks 2 | . . . . . . . . . . 2 . . . . Load Schematic 1 | . . . . . . . . . . 1 . . . . Build 1 | . . . . . . . . . . 1 . . . . Repair Station Hacks 8 | . 2 . 2 . . . 4 . . . . . . . Scan Component 4 | . 1 . 1 . . . 2 . . . . . . . Repair 4 | . 1 . 1 . . . 2 . . . . . . . Recycling Unit Hacks 11 | . 2 . . . . . 2 1 6 . . . . . Report Inventory 3 | . . . . . . . 1 . 2 . . . . . Retrieve Matter 1 | . . . . . . . . . 1 . . . . . Retrieve Components 7 | . 2 . . . . . 1 1 3 . . . . . Scanalyzer 42 | . . . 18 . . . 24 . . . . . . . Insert Component 19 | . . . 9 . . . 10 . . . . . . . Analyze 23 | . . . 9 . . . 14 . . . . . . . Garrison Access Hacks 4 | . . . . . . . 1 1 . 2 . . . . Seal Access 4 | . . . . . . . 1 1 . 2 . . . . Unauthorized Hacks 60 | . 9 . 15 . . . 17 2 12 5 . . . . Terminals 45 | . 7 . 14 . . . 13 1 5 5 . . . . Track 18 | . 3 . 8 . . . 5 1 1 . . . . . Assimilate 3 | . 1 . . . . . 1 . . 1 . . . . Botnet 18 | . 2 . 4 . . . 5 . 4 3 . . . . Operators 6 | . 1 . 2 . . . 2 . . 1 . . . . Fabricators . | . . . . . . . . . . . . . . . Repair Stations . | . . . . . . . . . . . . . . . Recycling Units 13 | . 2 . . . . . 3 1 7 . . . . . Reject 4 | . . . . . . . 1 . 3 . . . . . Recyclers 1 | . . . . . . . . . 1 . . . . . Mask 1 | . . . . . . . . . 1 . . . . . Tunnel 7 | . 2 . . . . . 2 1 2 . . . . . Scanalyzers 1 | . . . 1 . . . . . . . . . . . Extract 1 | . . . 1 . . . . . . . . . . . Garrison Access 1 | . . . . . . . 1 . . . . . . . Watchers 1 | . . . . . . . 1 . . . . . . . Data Cores Recovered 2 | . . . . . . . 2 . . . . . . . Used . | . . . . . . . . . . . . . . . Hacking Detections 54 | . 6 . 11 . . . 12 8 9 8 . . . . Full Trace Events 10 | . 2 . 1 . . . 1 1 3 2 . . . . Feedback Events 1 | . . . . . . . . . . 1 . . . . Corruption 1 | . . . . . . . . . . 1 . . . . Feedback Blocked . | . . . . . . . . . . . . . . . Robot Schematics Acquired 7 | . 1 . . . . . . . . 1 . . 5 . Robots Built . | . . . . . . . . . . . . . . . Authchips . | . . . . . . . . . . . . . . . Time . | . . . . . . . . . . . . . . . Total Robot Build Rating . | . . . . . . . . . . . . . . . Part Schematics Acquired 39 | . . . 11 . . . 11 2 2 2 . . 11 . Parts Built 1 | . . . . . . . . . . 1 . . . . Authchips . | . . . . . . . . . . . . . . . Time 31 | . . . . . . . . . . 31 . . . . Total Part Build Rating 5 | . . . . . . . . . . 5 . . . . Parts Repaired 4 | . 1 . 1 . . . 2 . . . . . . . Time 144 | . 26 . 25 . . . 93 . . . . . . . Parts Recycled . | . . . . . . . . . . . . . . . Recycled Matter . | . . . . . . . . . . . . . . . Retrieved Matter . | . . . . . . . . . . . . . . . Retrieved Components 40 | . 11 . . . . . 10 10 9 . . . . . Parts Scanalyzed 19 | . . . 9 . . . 10 . . . . . . . Part Schematics Acquired 19 | . . . 9 . . . 10 . . . . . . . Parts Damaged 1 | . . . . . . . 1 . . . . . . . Bothacking | -11 -10 -10 -9 -9 -9 -8 -8 -8 -8 -6 -6 -6 -6 -5 ------------ Run | Jun Mat Min Mat Min Exi Min Mat Sto Rec Fac Low Low Dat Pro Used RIF Installer . | . . . . . . . . . . . . . . . Robots Hacked 7 | . . . 2 . 4 . . . 1 . . . . . Non-combat 5 | . . . 2 . 3 . . . . . . . . . Combat 2 | . . . . . 1 . . . 1 . . . . . Robot Hacks Applied 7 | . . . 2 . 4 . . . 1 . . . . . parse_system 7 | . . . 2 . 4 . . . 1 . . . . . Relay Couplers Released 2 | . . . . . . . . . . 2 . . . . Programmers 2 | . . . . . . . . . . 2 . . . . Fabnet Peak Effective % . | . . . . . . . . . . . . . . . Robots Rewired . | . . . . . . . . . . . . . . . Allies Hacked . | . . . . . . . . . . . . . . . Hacks Repelled . | . . . . . . . . . . . . . . . Allies | -11 -10 -10 -9 -9 -9 -8 -8 -8 -8 -6 -6 -6 -6 -5 -------- Run | Jun Mat Min Mat Min Exi Min Mat Sto Rec Fac Low Low Dat Pro Total Allies 8 | . 1 . . 1 . . . 1 . 3 . . 2 . Largest Group 3 | . 1 1 1 1 . . . 1 1 3 . . 2 2 Highest-Rated Group 192 | . 10 10 10 31 . . . 100 100 154 . . 192 192 Highest-Rated Ally 100 | . 10 10 10 31 . . . 100 100 100 . . 96 96 Total Orders 3 | . . . . 1 . . . . . 1 . . 1 . STAY 1 | . . . . . . . . . . 1 . . . . EXPLORE 1 | . . . . 1 . . . . . . . . . . RETURN 1 | . . . . . . . . . . . . . 1 . Ally Attacks 96 | . . . . 7 . . . 3 3 43 . . 14 26 Total Damage 2908 | . . . . 65 . . . 68 79 1313 . . 415 968 Kills 22 | . . . . 2 . . . 1 2 10 . . 2 5 Allies Corrupted . | . . . . . . . . . . . . . . . Allies Melted . | . . . . . . . . . . . . . . . Field Lobotomies 3 | . . . . . . . . 1 . . . . 2 . Intel | -11 -10 -10 -9 -9 -9 -8 -8 -8 -8 -6 -6 -6 -6 -5 ------- Run | Jun Mat Min Mat Min Exi Min Mat Sto Rec Fac Low Low Dat Pro Robot Analysis Total 140 | . 3 . 2 . . . . . 2 2 . . 131 . Derelict Logs Recovered 5 | . . 1 . 2 . . . . . . . 1 . 1 Drone Launches 14 | . . . . 5 . . . . . . . . 9 . Drone Recoveries 14 | . . . . 5 . . . . . . . . 9 . Exploration | -11 -10 -10 -9 -9 -9 -8 -8 -8 -8 -6 -6 -6 -6 -5 ------------- Run | Jun Mat Min Mat Min Exi Min Mat Sto Rec Fac Low Low Dat Pro Turns Passed 17916 | 2112 1288 447 1602 790 606 1000 2985 1490 686 2427 896 665 246 676 Spaces Moved 8674 | 457 777 374 737 443 372 535 1416 741 349 1238 460 374 118 283 Core 4 | 4 . . . . . . . . . . . . . . Treads 6954 | 19 85 . 521 443 372 535 1416 741 349 1238 460 374 118 283 Legs . | . . . . . . . . . . . . . . . Wheels 1716 | 434 692 374 216 . . . . . . . . . . . Hover . | . . . . . . . . . . . . . . . Flight . | . . . . . . . . . . . . . . . Fastest Speed 50 | 50 80 80 110 160 160 160 160 166 166 166 166 166 166 161 Average Speed 148 | 83 88 91 145 160 160 160 162 166 166 166 166 166 166 177 Slowest Speed 250 | 160 160 110 160 160 160 160 166 250 166 166 166 166 166 240 Overloaded Moves . | . . . . . . . . . . . . . . . Propulsion Burnouts . | . . . . . . . . . . . . . . . Robots Hopped . | . . . . . . . . . . . . . . . Cave-ins Triggered . | . . . . . . . . . . . . . . . Exploration Rate (%) 72 | 51 87 63 57 99 76 86 93 92 99 33 61 50 79 57 Regions Visited 14 Branch Regions 10 Pre-discovered Areas 26 | . 2 . . . 1 . 2 2 2 . . 1 16 . Known Exits Taken 6 | . 1 1 1 . . 1 1 . . 1 . . . . Unknown Exits Taken 8 | 1 . . . 1 1 . . 1 1 . 1 1 1 . Scrap Searched 16 | . . 1 . 1 . 1 . . . . 4 7 . 2 Spaces Dug 7 | . 6 1 . . . . . . . . . . . . Terrain Destroyed 109 | 2 16 1 . . . 9 27 39 3 6 . 6 . . Melee 7 | . 6 1 . . . . . . . . . . . . Projectile 6 | . . . . . . . . . . . . 6 . . AOE 96 | 2 10 . . . . 9 27 39 3 6 . . . . Terrain Rammed . | . . . . . . . . . . . . . . . Walls Destroyed . | . . . . . . . . . . . . . . . Machines Disabled . | . . . . . . . . . . . . . . . Actions | -11 -10 -10 -9 -9 -9 -8 -8 -8 -8 -6 -6 -6 -6 -5 --------- Run | Jun Mat Min Mat Min Exi Min Mat Sto Rec Fac Low Low Dat Pro Total 12852 | 2178 1175 446 1135 496 380 641 1979 911 450 1527 573 398 160 403 Wait 2958 | 1707 188 44 258 30 . 64 313 44 64 119 61 2 8 56 Move 8660 | 456 776 373 736 442 371 534 1415 740 348 1237 459 373 117 283 Hop . | . . . . . . . . . . . . . . . Pick Up 67 | 3 3 2 9 . 1 3 26 3 8 5 . 1 2 1 Fast Attach 42 | 6 6 1 4 . . 1 9 6 . 5 3 . . 1 Attach 18 | 1 . 1 1 . 1 . 6 . 4 1 . 1 1 1 Detach 8 | . . . 1 . . . 5 . 1 . . . 1 . Swap 41 | . 10 . 12 . 2 . 10 4 1 2 . . . . Drop 107 | . 11 1 16 . 1 3 32 10 8 11 7 . 3 4 Fire 487 | 5 87 . 43 14 . 18 86 62 11 83 22 13 7 36 Melee 96 | . 39 19 33 . 4 . . . 1 . . . . . Ram . | . . . . . . . . . . . . . . . Kick . | . . . . . . . . . . . . . . . Crush 2 | . . . . . . . 2 . . . . . . . Escape Stasis . | . . . . . . . . . . . . . . . Rewire 1 | . 1 . . . . . . . . . . . . . Trap 1 | . . 1 . . . . . . . . . . . . Miscellaneous 364 | . 54 4 22 10 . 18 75 42 4 64 21 8 21 21 Route ------- -11/Junkyard -10/Materials (discovered 5 exits: *Mat x3 / *Min x2) -10/Mines -9/Materials (discovered 3 exits: *Mat / *Min x2) -9/Mines (discovered 3 exits: *Mat x2 / *Exi) -9/Exiles (discovered 2 exits: [*Min x2]) -8/Mines -8/Materials (discovered 5 exits: *Fac x3 / *Sto x2) -8/Storage (discovered 2 exits: *Fac / *Rec) -8/Recycling -6/Factory (discovered 3 exits: *Fac / *Low x2) -6/Lower Caves -6/Lower Caves -6/Data Miner -5/Proximity Caves (discovered 1 exit: Fac) History --------- Turn | Location | Event 1 | -11/Junkyard | Upgraded with Propulsion slot (x1) 1 | -11/Junkyard | Upgraded with Utility slot (x1) 1 | -11/Junkyard | Upgraded with Weapon slot (x1) 13 | -11/Junkyard | Discovered new exit (range 15) 1435 | -11/Junkyard | Assembled infested the area 2113 | -11/Junkyard | Entered Materials 2114 | -10/Materials | Build established: Mutant 2189 | -10/Materials | Core integrity fell below 50% 2258 | -10/Materials | Repaired EM Pulse Gun 2363 | -10/Materials | Discovered new exit (range 13) 2554 | -10/Materials | Reached level 2 2556 | -10/Materials | Upgraded with Utility slot (x1) 2740 | -10/Materials | Discovered new exit (range 11) 2950 | -10/Materials | Discovered new exit (range 11) 3089 | -10/Materials | Build established: Scavenger-Assassin 3097 | -10/Materials | Reached level 3 3097 | -10/Materials | Upgraded with Propulsion slot (x1) 3196 | -10/Materials | Discovered new exit (range 13) 3386 | -10/Materials | Discovered new exit (range 7) 3400 | -10/Materials | Identified exit to Mines 3401 | -10/Materials | Entered Mines 3401 | -10/Mines | Accompanied by 1 ally 3459 | -10/Mines | Met a Derelict bent on vengeance 3513 | -10/Mines | Reached level 4 3526 | -10/Mines | Upgraded with Utility slot (x1) 3526 | -10/Mines | Upgraded with Weapon slot (x1) 3623 | -10/Mines | Found a hidden stash of uninstalled traps 3658 | -10/Mines | Discovered new exit (range 16) 3670 | -10/Mines | Identified exit to Materials 3676 | -10/Mines | Found the Drone Emporium 3681 | -10/Mines | Found Prototype Device 3681 | -10/Mines | Identified Sensor Drone Bay 3804 | -10/Mines | Assembled infested the area 3848 | -10/Mines | Entered Materials 3848 | -9/Materials | Accompanied by 1 ally 3850 | -9/Materials | Reached level 5 4192 | -9/Materials | Central database locked down 4192 | -9/Materials | Identified exit to Mines 4364 | -9/Materials | Reached level 6 4383 | -9/Materials | Upgraded with Utility slot (x1) 4404 | -9/Materials | Build established: Hacker-Mutant 4483 | -9/Materials | Discovered new exit (range 17) 4555 | -9/Materials | Identified exit to Materials 5005 | -9/Materials | Repaired Imp. Assault Rifle 5450 | -9/Materials | Entered Mines 5452 | -9/Mines | Reached level 7 5513 | -9/Mines | Discovered exit to Materials (range 11) 5665 | -9/Mines | Discovered exit to Materials (range 44) 5815 | -9/Mines | Deemed a non-threat by the Exiles lab entrance 5816 | -9/Mines | Discovered new exit (range 5) 5904 | -9/Mines | Learned location of 1 exit from Proximity Caves 5923 | -9/Mines | Received a Mining Laser from a helpful Derelict 6240 | -9/Mines | Entered Exiles 6242 | -9/Exiles | Reached level 8 6261 | -9/Exiles | Discovered new exit (range 15) 6280 | -9/Exiles | Met 8R-AWN 6319 | -9/Exiles | Met EX-HEX 6381 | -9/Exiles | Met EX-DEC 6391 | -9/Exiles | Learned location of Zion (-7) 6457 | -9/Exiles | Visited The Gauntlet 6536 | -9/Exiles | Met EX-BIN 6640 | -9/Exiles | Aligned with FarCom system 6642 | -9/Exiles | Given EX-Vault access code 6678 | -9/Exiles | Opened EX-Vault 6694 | -9/Exiles | Found Field Lobotomy Kit 6732 | -9/Exiles | Warned to stay clear of 0b10 Research branches 6747 | -9/Exiles | Exiles lab attacked by MAIN.C 6833 | -9/Exiles | Discovered new exit (range 10) 6846 | -9/Exiles | Left Exiles lab with Field Lobotomy Kit 6846 | -9/Exiles | Entered Mines 6850 | -8/Mines | Discovered exit to Materials (range 4) 7144 | -8/Mines | Build established: Hacker-Skirmisher 7846 | -8/Mines | Entered Materials 7847 | -8/Materials | Identified exit to Storage 7848 | -8/Materials | Reached level 9 7848 | -8/Materials | Upgraded with Utility slot (x1) 7993 | -8/Materials | Reached level 10 8432 | -8/Materials | Reached level 11 8502 | -8/Materials | Discovered new exit (range 15) 8765 | -8/Materials | Discovered new exit (range 15) 8891 | -8/Materials | Identified exit to Factory 8957 | -8/Materials | Upgraded with Power slot (x1) 8957 | -8/Materials | Upgraded with Utility slot (x1) 9808 | -8/Materials | Repaired Rnf. Ion Engine 9987 | -8/Materials | Reached level 12 10653 | -8/Materials | Repaired Corrupted Weapon Cycler 10831 | -8/Materials | Entered Storage 10895 | -8/Storage | Learned location of Armory (-3) 11092 | -8/Storage | Reached level 13 11452 | -8/Storage | Garrison activated, responded to threat 11552 | -8/Storage | Garrison activated, responded to threat 11624 | -8/Storage | Destroyed 10 combat bots 11633 | -8/Storage | Discovered new exit (range 9) 11863 | -8/Storage | Met 01-MTF 11868 | -8/Storage | Assimilated 01-MTF with FLK Orb 12159 | -8/Storage | Discovered exit to Factory (range 13) 12321 | -8/Storage | Entered Recycling 12321 | -8/Recycling | Accompanied by 1 ally (*My MTF) 12323 | -8/Recycling | Reached level 14 12323 | -8/Recycling | Upgraded with Utility slot (x1) 12326 | -8/Recycling | Found Scrap Engine 12937 | -8/Recycling | Discovered new exit (range 12) 13007 | -8/Recycling | Entered Factory 13007 | -6/Factory | Accompanied by 1 ally (*My MTF) 13009 | -6/Factory | Reached level 15 13357 | -6/Factory | Search patrols dispatched 13664 | -6/Factory | Reached level 16 13665 | -6/Factory | Upgraded with Utility slot (x1) 13704 | -6/Factory | Destroyed *My MTF 13924 | -6/Factory | Core integrity fell below 50% 14043 | -6/Factory | Garrison activated, responded to threat 14061 | -6/Factory | Reached level 17 14367 | -6/Factory | Discovered new exit (range 9) 14390 | -6/Factory | Identified exit to Lower Caves 14777 | -6/Factory | Fabricated Imp. Heavy Armor Plating? 14910 | -6/Factory | Reached level 18 15394 | -6/Factory | Garrison activated, responded to threat 15434 | -6/Factory | Entered Lower Caves 15722 | -6/Lower Caves | Build established: Hacker-Gunner 16140 | -6/Lower Caves | Discovered new exit (range 12) 16330 | -6/Lower Caves | Entered another Lower Caves area 16332 | -6/Lower Caves | Reached level 19 16339 | -6/Lower Caves | Upgraded with Utility slot (x1) 16886 | -6/Lower Caves | Discovered new exit (range 7) 16995 | -6/Lower Caves | Entered Data Miner 16995 | -6/Data Miner | Discovered new exit (range 6) 17027 | -6/Data Miner | Met Data Miner 17073 | -6/Data Miner | Learned location of Section 7 (-2) 17073 | -6/Data Miner | Acquired the access code to Warlord's prototype stash 17103 | -6/Data Miner | Received God Mode back door access code from Data Miner 17119 | -6/Data Miner | Interfaced with the Data Conduit 17142 | -6/Data Miner | Assimilated Enhanced Grunt with FLK Orb 17145 | -6/Data Miner | Assimilated Enhanced Grunt with FLK Orb 17157 | -6/Data Miner | Core integrity fell below 20% 17215 | -6/Data Miner | Found Exp. Thermal Shield 17241 | -6/Data Miner | Entered Proximity Caves 17241 | -5/Proximity Caves | Accompanied by 2 allies 17242 | -5/Proximity Caves | Identified exit to Factory 17243 | -5/Proximity Caves | Reached level 20 17301 | -5/Proximity Caves | Build established: Hacker-Mutant 17590 | -5/Proximity Caves | Spotted B-75 Beast 17618 | -5/Proximity Caves | Allies destroyed B-75 Beast 17705 | -5/Proximity Caves | Learned Factory trap positions 17917 | -5/Proximity Caves | Destroyed by D-63 Destroyer with Heavy Rocket Launcher Last Messages --------------- 17785_ System corrupted: Energy discharge (-144). 17818_ G-50 Soldier destroyed. 17819_ System corrupted: Energy discharge (-120). 17830_ Arm. Scrap Engine consumes Lgt. Angular Momentum Engine. 17831_ Acquired 8 matter. 17863_ System corrupted: Heat flow error (+114). 17863_ Enhanced Grunt destroyed. 17875_ Imp. Heavy Armor Plating destroyed. 17878_ Hvy. Rocket Launcher melted. 17878_ D-63 Destroyer destroyed. 17879_ System corrupted: Matter fused (-5). 17882_ Cmb. Gravmag System fries itself beyond repair. 17889_ I-47 Archangel suffers critical hit (Burn). 17892_ Shock Absorption System fries itself beyond repair. 17894_ System corrupted: Thermal Construct/G jammed. 17896_ The unstable cave ceiling collapses. 17899_ I-47 Archangel suffers critical hit (Burn). 17901_ P&GL6PE0Z8J9 C,>CUZ/RWZ0N< 2G >K/9< 17907_ Destroyed Com. Wheel. 17916_ I-47 Archangel heat damages Com. Battery. Map ----- +----------------------------------------------------+ | ?????????????????????????????????????????????????? | | ?????????????????????????????????????????????????? | | ?????????????????????????????????????????????????? | | ?????????????????????????????????????????????????? | | ?????????????????????????????????????????????????? | | ?????????????????????????????????????????????????? | | ?????????????????????? ? ??? ? ?????????????????? | | ?????????????????? ?? ?? ?? ?? ?#???????????????? | | ??????????????? ?? ? ??????#???????????????? | | ????????????? ? ?????? #? ? ???##???????????? | | ????????????? ?? ? #?? ? ??##?#??????????? | | ????????????? ? ? i #???? ?????#??????????? | | ?????????? ? ? #? ###??#?????????? | | ????????? ?? #?? ? ?#?##???#???????? | | ?????????? ?? #???? ?????#?????????? | | ????? ?? ?? %%# ? #?###?#?#??????? | | ?????????? ? ######?##?#?##?#??????? | | ??? ?? ??? #?###???##???????? | | ? ????? ##?###????#??????? | | ? ? ?? ?? ##?##??##????????? | | ???? ?? ? #?#????##?#??????? | | ????? ? ? ##??#?##?#???????? | | ??? ? #####?##?#??#????? | | ? ?? ???? #?#??#????##?????? | | ?? ?? ##??#?###??##????? | | ? ??? ? @ #?##?####??###???? | | ? ? ? ? d #???#####?#??????? | | ?#?##?? ? i ######### ######?##?##?##?#?????? | | ?###?#? ? ??##?#?## #####??#??#?##?#?#????? | | #?#??########?########??# ####?###??#?##?#?##???? | | #??###?########?????#??? ############?####????? | | ###????#############?### # #####?##?#?####????? | | ######## #########?#? # ####?#??#???##???? | | # ## #### # ### ####?##???????? | | # ### ## ##?#?####?????? | | #?# ## ###?##?###????? | | ## ## #### # ## ##???????#????? | | ##### ######## #?# ######?????#??? | | ###### #####?# #### ##??####??????? | | #??#### ####### #?# #######???????? | | #?#??### ####### ### #######??????? | | ##????#### ## ## ###? ###?##????????? | | ##????##?# ##??#?#??#????????? | | #?##??## %% #?#?#?????##?????? | | #???# ##???#????#?????? | | #??# ####### ####???????????? | | #??# #####?# #?#????????????? | | ## ????## ### ##??????????????? | | ? ## ##? ##?????#????????? | | ### ??? ?# #??####?#?????????????? | +----------------------------------------------------+ Best States ------------- Heat Dissipation 63 Coolant Potential 50 Energy Generation 26 Energy Capacity 445 Matter Stores 300 Matter Capacity 300 Sight Range 17 Terrain Scan Range 20 Terrain Scan Density 110 Armor Coverage 600 Resistance: KI 20 Resistance: EM 15 Weapon Cycling 15 Evasion (%) 44 Recoil Reduction 3 Salvage Targeting 1 Offensive Hacking 10 Defensive Hacking 10 Item Schematics ----------------- EM Pulse Gun | -9/Materials | Scanalyzed Hvy. Ion Engine | -9/Materials | Extracted Mni. Grenade Launcher | -9/Materials | Extracted Cld. Ion Engine | -9/Materials | Scanalyzed Hvy. EM Pulse Gun | -9/Materials | Scanalyzed Hvy. Assault Rifle | -9/Materials | Scanalyzed Datajack | -9/Materials | Scanalyzed Spread Laser | -9/Materials | Scanalyzed Imp. Assault Rifle | -9/Materials | Scanalyzed Lgt. Armor Plating | -9/Materials | Scanalyzed Signal Interpreter | -9/Materials | Scanalyzed Salvage Targeting Computer | -8/Materials | Scanalyzed Med. Armor Plating | -8/Materials | Scanalyzed Autogun | -8/Materials | Scanalyzed Cesium-ion Thruster | -8/Materials | Scanalyzed Disposable Heat Sink | -8/Materials | Scanalyzed Enh. Autogun | -8/Materials | Scanalyzed Gauss Rifle | -8/Materials | Scanalyzed Hacking Suite | -8/Materials | Scanalyzed Arm. Treads | -8/Materials | Scanalyzed Imp. Treads | -8/Materials | Scanalyzed Shield Generator | -8/Materials | Hacked Med. Treads | -8/Storage | Hacked Lrn. Missile Launcher | -8/Storage | Hacked Imp. Heavy Armor Plating | -8/Recycling | Hacked Imp. Gravmag System | -8/Recycling | Hacked Imp. Hacking Suite | -6/Factory | Hacked Imp. Shield Generator | -6/Factory | Hacked Combat Drone Bay | -6/Data Miner | Free Lgt. Regenerative Plating | -6/Data Miner | Free Cld. Gravmag System | -6/Data Miner | Free Prc. Matter Filter | -6/Data Miner | Free Tri-rail Accelerator | -6/Data Miner | Free Myomer Leg | -6/Data Miner | Free Adv. Power Amplifier | -6/Data Miner | Free Force Lance | -6/Data Miner | Free Adv. VSS Leg | -6/Data Miner | Free Mic. Antimatter Reactor | -6/Data Miner | Free Impulse Thruster Array | -6/Data Miner | Free Robot Schematics ------------------ M-13 Machinist | -10/Materials | Hacked R-10 Processor | -6/Factory | Hacked B-48 Gladiator | -6/Data Miner | Free S-27 Virus | -6/Data Miner | Free E-15 Imp | -6/Data Miner | Free L-61 Swordsman | -6/Data Miner | Free H-66 Slayer | -6/Data Miner | Free Fabricated ------------ Imp. Heavy Armor Plating | x1 | -6/Factory Alien Tech Used ----------------- None Achievements -------------- None Challenges ------------ None RPGLIKE | -11 -10 -10 -9 -9 -9 -8 -8 -8 -8 -6 -6 -6 -6 -5 --------- Run | Jun Mat Min Mat Min Exi Min Mat Sto Rec Fac Low Low Dat Pro Levels Raised 19 | . 2 1 2 1 1 . 4 1 1 4 . 1 . 1 XP Earned 32803 | 3150 3412 1100 4170 1468 304 1200 5355 2129 512 6333 748 360 755 1807 XP Spent 29630 | 2800 2750 1925 3020 1250 . . 7635 100 2300 4950 . 2900 . . Upgrades 39 | 9 4 3 5 1 . . 9 1 1 5 . 1 . . Power Slot 1 | . . . . . . . 1 . . . . . . . Propulsion Slot 2 | 1 1 . . . . . . . . . . . . . Utility Slot 9 | 1 1 1 1 . . . 2 . 1 1 . 1 . . Weapon Slot 2 | 1 . 1 . . . . . . . . . . . . Core Integrity 4 | . . 1 . . . . 1 . . 2 . . . . Heat Dissipation 2 | . . . 2 . . . . . . . . . . . Mass Support 1 | . . . . . . . . 1 . . . . . . Inventory Capacity 7 | 2 1 . 1 1 . . 1 . . 1 . . . . Sight Range 1 | 1 . . . . . . . . . . . . . . Terrain Scan Density 1 | 1 . . . . . . . . . . . . . . Ranged Accuracy 2 | . . . . . . . 1 . . 1 . . . . Hack Attack % 2 | 1 1 . . . . . . . . . . . . . Hack Defense % 2 | 1 . . 1 . . . . . . . . . . . KI Damage % 3 | . . . . . . . 3 . . . . . . . Protomatter Created 2749 | . 404 30 160 98 . 217 605 316 48 558 139 63 . 111 Integrity Restored 7534 | . 1155 85 480 195 . 391 1516 871 48 1267 408 189 474 455 Core 5869 | . 1090 65 480 192 . 196 849 593 29 1011 308 189 474 393 Parts 1665 | . 65 20 . 3 . 195 667 278 19 256 100 . . 62 Protomatter Decayed 522 | . 2 12 . 56 15 11 74 72 . 280 . . . . Game ------ Seed ElectronGhostMallet Manual? 0 Play Time 03:40:25 Cumulative 462.3 hours Start 2023.08.27 @ 01:27:03 End 2023.08.28 @ 01:43:33 Sessions 3 Manual Loads 0 Difficulty Rogue Special Mode Winter2019/RPGLIKE Game No. 181 Rogue 178 Adventurer 3 Explorer 0 Win Type - Total 8 Types 5/1/0/1/0/1/0/0/0 Lore% 84 Gallery% 88 Achievement% 78 Wizard Run 0 Options --------- ASCII 0 Keyboard 0 Movement Numpad Keybinds 0 Fullscreen 1 Font 18/SmallcapsGlow Map View 76x50 Tactical HUD 1 Map Filters NONE Filters NONE Steam 1 RUN: cd390563-b925-4aa5-8fb9-bd1a7c84fe2d